{"text_format":"2","workbook":"xlsx","n_sheets":10,"sheets":["pisciculture","Plateforme solaire","Pompage","Congélateurs solaires","Chambres Froides","Machine à glace","Tank à lait","Moulin Solaire","Presse à huile","Couveuse Solaire"],"not_rendered":{"charts":0,"images":0,"macros":0,"external_links":0,"defined_names":0,"comments":0,"pivot_tables":0},"unopened":[],"bounds":{"document_bytes":16777216,"sheet_cells":100000,"run_cost":"one","rows_first":2000,"rows_last":500,"rows_between":2000,"halvings":0,"cell_chars":16384,"cell_head_chars":4096},"cells_cut":0,"cells_raw":0,"read":"whole","date_system":"1900"}

{"sheet":"pisciculture","index":0,"n_rows":32,"n_cols":10,"rows_kept":32,"cut":false,"hidden":false,"merged":[[20,0,20,1],[32,0,32,1]]}
[null,null,"Notation sur 10","les notes s'échelonnent de 0 à 10"]
[]
[]
[null,null,"Richard Toll","Matam","Niayes","Bakel","Kédougou","Sédhiou","Fatick","Tambacounda"]
[null,"Critères"]
["bénéficiaires","La zone permet au pilote permet de cibler des petits producteurs, des goupes vulnérables  les femmes et les jeunes",9,9,5,9,9,9,9,9]
[null,"Existence d'une demande des acteurs au niveau de la zone",0,0,0,0,0,0,0,0]
[null,"Présence de bénéficiaires motivés prêts à investir",0,0,0,0,0,0,0,0]
["Partenaires","Présence d'acteurs organisés comme les coopératives, OP, motivés, dyamiques, inclusifs actifs dans la CDV",8,8,8,5,8,8,8,7]
[null,"Présence de partenaires qui promeuvent ou non l'application et qui peuvent permettre une synergie et accompagner le pilote et son passage à l'échelle au niveau de la zone (scaling up)",8,4,3,3,8,8,8,8]
["Conditions favorables","Existence de marché rémunérateur pour les produits issus de l'application",4,5,4,8,8,8,6,8]
[null,"Existence de fournisseurs de l'application dotés de service après vente de logistique pour la maintenance couvrent la zone",6,5,8,5,4,4,7,8]
[null,"Présence de services financiers en mesure d'accompagner le pilote",5,7,5,5,5,5,5,6]
[null,"Initiatives en cours avec d'autres sources d'énergie (diesel, électricité, manuel, etc.)",8,3,5,3,7,7,6,5]
["Urgence","Degré d'urgence et impact potentiel de l'application sur la CDV et avantage comparatif de la CDV dans la zone par rapport aux autres",5,8,5,5,5,5,5,4]
[]
[null,"Note globale",{"$f":"C6*$B$22+C7*$B$23+C8*$B$24+C9*$B$25+C10*$B$26+C11*$B$27+C12*$B$28+C13*$B$29+C15*$B$31+C14*$B$30","v":172},{"$f":"D6*$B$22+D7*$B$23+D8*$B$24+D9*$B$25+D10*$B$26+D11*$B$27+D12*$B$28+D13*$B$29+D15*$B$31+D14*$B$30","v":154},131,140,174,174,173,{"$f":"J6*$B$22+J7*$B$23+J8*$B$24+J9*$B$25+J10*$B$26+J11*$B$27+J12*$B$28+J13*$B$29+J15*$B$31+J14*$B$30","v":173}]
[null,"Moyenne pondérée",{"$f":"C17/B32","v":6.88},{"$f":"D17/B32","v":6.16},{"$f":"E17/B32","v":5.24},{"$f":"F17/B32","v":5.6},{"$f":"G17/B32","v":6.96},{"$f":"H17/B32","v":6.96},{"$f":"I17/B32","v":6.92},{"$f":"J17/B32","v":6.92}]
[]
["Base du choix","quatre premiers vec une moyenne supérieure à 6/10"]
["Pondération des critères"]
["La zone permet au pilote permet de cibler des petits producteurs, des goupes vulnérables susceptibles les femmes et les jeunes",5]
["Existence d'une demande des acteurs au niveau de la zone",0]
["Présence de bénéficiaires motivés prêts à investir",0]
["Présence d'acteurs organisés comme les coopératives, OP, motivés, dyamiques, inclusifs",2]
["Présence de partenaires qui promeuvent ou non l'application et qui peuvent permettre une synergie et accompagner le pilote et son passage à l'échelle au niveau de la zone (scaling up)",3]
["Existence de marché rémunérateur pour les produits issus de l'application",3]
["Existence de fournisseurs de l'application dotés de service après vente de logistique pour la maintenance couvrent la zone",3]
["Présence de services financiers en mesure d'accompagner le pilote",1]
["Initiatives en cours avec d'autres sources d'énergie (diesel, électricité, manuel, etc.)",4]
["Degré d'urgence",4]
[null,{"$f":"SUM(B22:B31)","v":25}]

{"sheet":"Plateforme solaire","index":1,"n_rows":32,"n_cols":10,"rows_kept":32,"cut":false,"hidden":false,"merged":[[20,0,20,1],[32,0,32,1]]}
[null,null,"Notation sur 10","les notes s'échelonnent de 0 à 10"]
[]
[]
[null,null,"Niayes","Saint-Louis","Fatick","Kédougou","Kolda","Matam","Tambacounda","Ziguinchor"]
[null,"Critères"]
["bénéficiaires","La zone permet au pilote permet de cibler des petits producteurs, des goupes vulnérables les femmes et les jeunes",6,8,8,9,8,6,6,6]
[null,"Existence d'une demande des acteurs au niveau de la zone"]
[null,"Présence de bénéficiaires motivés prêts à investir"]
["Partenaires","Présence d'acteurs organisés comme les coopératives, OP, motivés, dyamiques, inclusifs actifs dans la CDV",7,7,8,6,8,4,8,4]
[null,"Présence de partenaires qui promeuvent ou non l'application et qui peuvent permettre une synergie et accompagner le pilote et son passage à l'échelle au niveau de la zone (scaling up)",3,4,8,6,8,6,8,8]
["Conditions favorables","Existence de marché rémunérateur pour les produits issus de l'application",7,6,5,5,5,4,6,5]
[null,"Existence de fournisseurs de l'application dotés de service après vente de logistique pour la maintenance couvrent la zone",6,6,6,5,5,5,4,6]
[null,"Présence de services financiers en mesure d'accompagner le pilote",7,7,5,4,5,4,5,6]
[null,"Initiatives en cours avec d'autres sources d'énergie (diesel, électricité, manuel, etc.)",6,6,7,5,7,7,7,5]
["Urgence","Degré d'urgence et impact potentiel de l'application sur la CDV et avantage comparatif de la CDV dans la zone par rapport aux autres",3,3,5,9,8,8,7,5]
[]
[null,"Note globale",{"$f":"C6*$B$22+C7*$B$23+C8*$B$24+C9*$B$25+C10*$B$26+C11*$B$27+C12*$B$28+C13*$B$29+C15*$B$31+C14*$B$30","v":135},{"$f":"D6*$B$22+D7*$B$23+D8*$B$24+D9*$B$25+D10*$B$26+D11*$B$27+D12*$B$28+D13*$B$29+D15*$B$31+D14*$B$30","v":145},166,165,175,147,161,{"$f":"J6*$B$22+J7*$B$23+J8*$B$24+J9*$B$25+J10*$B$26+J11*$B$27+J12*$B$28+J13*$B$29+J15*$B$31+J14*$B$30","v":141}]
[null,"Moyenne pondérée",{"$f":"C17/B32","v":5.4},{"$f":"D17/B32","v":5.8},{"$f":"E17/B32","v":6.64},{"$f":"F17/B32","v":6.6},{"$f":"G17/B32","v":7},{"$f":"H17/B32","v":5.88},{"$f":"I17/B32","v":6.44},{"$f":"J17/B32","v":5.64}]
[]
["Base du choix","quatre premiers avec une moyenne supérieure à 6/10"]
["Pondération des critères"]
["La zone permet au pilote permet de cibler des petits producteurs, des goupes vulnérables susceptibles les femmes et les jeunes",5]
["Existence d'une demande des acteurs au niveau de la zone",0]
["Présence de bénéficiaires motivés prêts à investir",0]
["Présence d'acteurs organisés comme les coopératives, OP, motivés, dyamiques, inclusifs",2]
["Présence de partenaires qui promeuvent ou non l'application et qui peuvent permettre une synergie et accompagner le pilote et son passage à l'échelle au niveau de la zone (scaling up)",3]
["Existence de marché rémunérateur pour les produits issus de l'application",3]
["Existence de fournisseurs de l'application dotés de service après vente de logistique pour la maintenance couvrent la zone",3]
["Présence de services financiers en mesure d'accompagner le pilote",1]
["Initiatives en cours avec d'autres sources d'énergie (diesel, électricité, manuel, etc.)",4]
["Degré d'urgence",4]
[null,{"$f":"SUM(B22:B31)","v":25}]

{"sheet":"Pompage","index":2,"n_rows":32,"n_cols":9,"rows_kept":32,"cut":false,"hidden":false,"merged":[[20,0,20,1],[32,0,32,1]]}
[null,null,"Notation sur 10","les notes s'échelonnent de 0 à 10"]
[]
[]
[null,null,"Lac de Guiers","Niayes","Kaolack","Sédhiou","Tambacounda","Saint-Louis","Kolda"]
[null,"Critères"]
["bénéficiaires","La zone permet au pilote permet de cibler des petits producteurs, des goupes vulnérables  les femmes et les jeunes",7,8,6,7,7,5,6]
[null,"Existence d'une demande des acteurs au niveau de la zone",7,8,7,6,7,6,6]
[null,"Présence de bénéficiaires motivés prêts à investir",7,7,5,5,7,6,5]
["Partenaires","Présence d'acteurs organisés comme les coopératives, OP, motivés, dyamiques, inclusifs actifs dans la CDV",6,7,5,5,6,7,5]
[null,"Présence de partenaires qui promeuvent ou non l'application et qui peuvent permettre une synergie et accompagner le pilote et son passage à l'échelle au niveau de la zone (scaling up)",7,7,6,5,6,7,6]
["Conditions favorables","Existence de marché rémunérateur pour les produits issus de l'application",7,8,6,6,6,6,6]
[null,"Existence de fournisseurs de l'application dotés de service après vente de logistique pour la maintenance couvrent la zone",6,6,5,5,5,6,5]
[null,"Présence de services financiers en mesure d'accompagner le pilote",6,7,6,6,6,7,5]
[null,"Initiatives en cours avec d'autres sources d'énergie (diesel, électricité, manuel, etc.)",7,7,7,6,5,6,5]
["Urgence","Degré d'urgence et impact potentiel de l'application sur la CDV et avantage comparatif de la CDV dans la zone par rapport aux autres",6,6,7,7,8,6,8]
[]
[null,"Note globale",{"$f":"C6*$B$22+C7*$B$23+C8*$B$24+C9*$B$25+C10*$B$26+C11*$B$27+C12*$B$28+C13*$B$29+C15*$B$31+C14*$B$30","v":165},{"$f":"D6*$B$22+D7*$B$23+D8*$B$24+D9*$B$25+D10*$B$26+D11*$B$27+D12*$B$28+D13*$B$29+D15*$B$31+D14*$B$30","v":176},153,151,156,151,148]
[null,"Moyenne pondérée",{"$f":"C17/B32","v":6.6},{"$f":"D17/B32","v":7.04},{"$f":"E17/B32","v":6.12},{"$f":"F17/B32","v":6.04},{"$f":"G17/B32","v":6.24},{"$f":"H17/B32","v":6.04},{"$f":"I17/B32","v":5.92}]
[]
["Base du choix","quatre premiers avec une moyenne supérieure à 6/10"]
["Pondération des critères"]
["La zone permet au pilote permet de cibler des petits producteurs, des goupes vulnérables susceptibles les femmes et les jeunes",5]
["Existence d'une demande des acteurs au niveau de la zone",0]
["Présence de bénéficiaires motivés prêts à investir",0]
["Présence d'acteurs organisés comme les coopératives, OP, motivés, dyamiques, inclusifs",2]
["Présence de partenaires qui promeuvent ou non l'application et qui peuvent permettre une synergie et accompagner le pilote et son passage à l'échelle au niveau de la zone (scaling up)",3]
["Existence de marché rémunérateur pour les produits issus de l'application",3]
["Existence de fournisseurs de l'application dotés de service après vente de logistique pour la maintenance couvrent la zone",3]
["Présence de services financiers en mesure d'accompagner le pilote",1]
["Initiatives en cours avec d'autres sources d'énergie (diesel, électricité, manuel, etc.)",4]
["Degré d'urgence",4]
[null,{"$f":"SUM(B22:B31)","v":25}]

{"sheet":"Congélateurs solaires","index":3,"n_rows":32,"n_cols":10,"rows_kept":32,"cut":false,"hidden":false,"merged":[[20,0,20,1],[32,0,32,1]]}
[null,null,"Notation sur 10","les notes s'échelonnent de 0 à 10"]
[]
[]
[null,null,"Saint-Louis","Niayes","Fatick","Ziguinchor","Tambacounda","Louga"]
[null,"Critères"]
["bénéficiaires","La zone permet au pilote permet de cibler des petits producteurs, des goupes vulnérables  les femmes et les jeunes",6,6,7,7,7,7]
[null,"Existence d'une demande des acteurs au niveau de la zone"]
[null,"Présence de bénéficiaires motivés prêts à investir",0,0,0,0,0,0]
["Partenaires","Présence d'acteurs organisés comme les coopératives, OP, motivés, dyamiques, inclusifs actifs dans la CDV",5,6,5,5,5,5]
[null,"Présence de partenaires qui promeuvent ou non l'application et qui peuvent permettre une synergie et accompagner le pilote et son passage à l'échelle au niveau de la zone (scaling up)",5,6,8,8,8,7]
["Conditions favorables","Existence de marché rémunérateur pour les produits issus de l'application",7,7,6,7,6,6]
[null,"Existence de fournisseurs de l'application dotés de service après vente de logistique pour la maintenance couvrent la zone",4,5,4,4,6,4]
[null,"Présence de services financiers en mesure d'accompagner le pilote",6,5,5,6,5,4]
[null,"Initiatives en cours avec d'autres sources d'énergie (diesel, électricité, manuel, etc.)",0,0,0,0,0,0]
["Urgence","Degré d'urgence et impact potentiel de l'application sur la CDV et avantage comparatif de la CDV dans la zone par rapport aux autres",6,6,8,7,8,8]
[]
[null,"Note globale",{"$f":"C6*$B$22+C7*$B$23+C8*$B$24+C9*$B$25+C10*$B$26+C11*$B$27+C12*$B$28+C13*$B$29+C15*$B$31+C14*$B$30","v":118},{"$f":"D6*$B$22+D7*$B$23+D8*$B$24+D9*$B$25+D10*$B$26+D11*$B$27+D12*$B$28+D13*$B$29+D15*$B$31+D14*$B$30","v":125},136,136,142,132,0,{"$f":"J6*$B$22+J7*$B$23+J8*$B$24+J9*$B$25+J10*$B$26+J11*$B$27+J12*$B$28+J13*$B$29+J15*$B$31+J14*$B$30","v":0}]
[null,"Moyenne pondérée",{"$f":"C17/B32","v":4.72},{"$f":"D17/B32","v":5},{"$f":"E17/B32","v":5.44},{"$f":"F17/B32","v":5.44},{"$f":"G17/B32","v":5.68},{"$f":"H17/B32","v":5.28},{"$f":"I17/B32","v":0},{"$f":"J17/B32","v":0}]
[]
["Base du choix","quatre premiers avec une moyenne supérieure à 6/10"]
["Pondération des critères"]
["La zone permet au pilote permet de cibler des petits producteurs, des goupes vulnérables susceptibles les femmes et les jeunes",5]
["Existence d'une demande des acteurs au niveau de la zone",0]
["Présence de bénéficiaires motivés prêts à investir",0]
["Présence d'acteurs organisés comme les coopératives, OP, motivés, dyamiques, inclusifs",2]
["Présence de partenaires qui promeuvent ou non l'application et qui peuvent permettre une synergie et accompagner le pilote et son passage à l'échelle au niveau de la zone (scaling up)",3]
["Existence de marché rémunérateur pour les produits issus de l'application",3]
["Existence de fournisseurs de l'application dotés de service après vente de logistique pour la maintenance couvrent la zone",3]
["Présence de services financiers en mesure d'accompagner le pilote",1]
["Initiatives en cours avec d'autres sources d'énergie (diesel, électricité, manuel, etc.)",4]
["Degré d'urgence",4]
[null,{"$f":"SUM(B22:B31)","v":25}]

{"sheet":"Chambres Froides","index":4,"n_rows":32,"n_cols":10,"rows_kept":32,"cut":false,"hidden":false,"merged":[[20,0,20,1],[32,0,32,1]]}
[null,null,"Notation sur 10","les notes s'échelonnent de 0 à 10"]
[]
[]
[null,null,"Saint-Louis","Niayes","Louga","Ziguinchor","Fatick"]
[null,"Critères"]
["bénéficiaires","La zone permet au pilote permet de cibler des petits producteurs, des goupes vulnérables  les femmes et les jeunes",5,6,5,5,6]
[null,"Existence d'une demande des acteurs au niveau de la zone"]
[null,"Présence de bénéficiaires motivés prêts à investir"]
["Partenaires","Présence d'acteurs organisés comme les coopératives, OP, motivés, dyamiques, inclusifs actifs dans la CDV",6,6,5,5,5]
[null,"Présence de partenaires qui promeuvent ou non l'application et qui peuvent permettre une synergie et accompagner le pilote et son passage à l'échelle au niveau de la zone (scaling up)",5,6,5,5,5]
["Conditions favorables","Existence de marché rémunérateur pour les produits issus de l'application",6,7,7,7,6]
[null,"Existence de fournisseurs de l'application dotés de service après vente de logistique pour la maintenance couvrent la zone",5,5,5,5,5]
[null,"Présence de services financiers en mesure d'accompagner le pilote",7,7,6,6,6]
[null,"Initiatives en cours avec d'autres sources d'énergie (diesel, électricité, manuel, etc.)",5,6,6,5,6]
["Urgence","Degré d'urgence et impact potentiel de l'application sur la CDV et avantage comparatif de la CDV dans la zone par rapport aux autres",4,6,6,5,7]
[]
[null,"Note globale",{"$f":"C6*$B$22+C7*$B$23+C8*$B$24+C9*$B$25+C10*$B$26+C11*$B$27+C12*$B$28+C13*$B$29+C15*$B$31+C14*$B$30","v":128},{"$f":"D6*$B$22+D7*$B$23+D8*$B$24+D9*$B$25+D10*$B$26+D11*$B$27+D12*$B$28+D13*$B$29+D15*$B$31+D14*$B$30","v":151},140,132,146,0,0,{"$f":"J6*$B$22+J7*$B$23+J8*$B$24+J9*$B$25+J10*$B$26+J11*$B$27+J12*$B$28+J13*$B$29+J15*$B$31+J14*$B$30","v":0}]
[null,"Moyenne pondérée",{"$f":"C17/B32","v":5.12},{"$f":"D17/B32","v":6.04},{"$f":"E17/B32","v":5.6},{"$f":"F17/B32","v":5.28},{"$f":"G17/B32","v":5.84},{"$f":"H17/B32","v":0},{"$f":"I17/B32","v":0},{"$f":"J17/B32","v":0}]
[]
["Base du choix","quatre premiers avec une moyenne supérieure à 6/10"]
["Pondération des critères"]
["La zone permet au pilote permet de cibler des petits producteurs, des goupes vulnérables susceptibles les femmes et les jeunes",5]
["Existence d'une demande des acteurs au niveau de la zone",0]
["Présence de bénéficiaires motivés prêts à investir",0]
["Présence d'acteurs organisés comme les coopératives, OP, motivés, dyamiques, inclusifs",2]
["Présence de partenaires qui promeuvent ou non l'application et qui peuvent permettre une synergie et accompagner le pilote et son passage à l'échelle au niveau de la zone (scaling up)",3]
["Existence de marché rémunérateur pour les produits issus de l'application",3]
["Existence de fournisseurs de l'application dotés de service après vente de logistique pour la maintenance couvrent la zone",3]
["Présence de services financiers en mesure d'accompagner le pilote",1]
["Initiatives en cours avec d'autres sources d'énergie (diesel, électricité, manuel, etc.)",4]
["Degré d'urgence",4]
[null,{"$f":"SUM(B22:B31)","v":25}]

{"sheet":"Machine à glace","index":5,"n_rows":32,"n_cols":10,"rows_kept":32,"cut":false,"hidden":false,"merged":[[20,0,20,1],[32,0,32,1]]}
[null,null,"Notation sur 10","les notes s'échelonnent de 0 à 10"]
[]
[]
[null,null,"Saint-Louis","Niayes","Fatick","Ziguinchor"]
[null,"Critères"]
["bénéficiaires","La zone permet au pilote permet de cibler des petits producteurs, des goupes vulnérables les femmes et les jeunes",5,5,6,6]
[null,"Existence d'une demande des acteurs au niveau de la zone",0,0,0,0]
[null,"Présence de bénéficiaires motivés prêts à investir",0,0,0,0]
["Partenaires","Présence d'acteurs organisés comme les coopératives, OP, motivés, dyamiques, inclusifs actifs dans la CDV",6,6,5,5]
[null,"Présence de partenaires qui promeuvent ou non l'application et qui peuvent permettre une synergie et accompagner le pilote et son passage à l'échelle au niveau de la zone (scaling up)",5,5,5,5]
["Conditions favorables","Existence de marché rémunérateur pour les produits issus de l'application",6,7,7,7]
[null,"Existence de fournisseurs de l'application dotés de service après vente de logistique pour la maintenance couvrent la zone",5,5,5,5]
[null,"Présence de services financiers en mesure d'accompagner le pilote",6,6,5,5]
[null,"Initiatives en cours avec d'autres sources d'énergie (diesel, électricité, manuel, etc.)",4,4,6,6]
["Urgence","Degré d'urgence et impact potentiel de l'application sur la CDV et avantage comparatif de la CDV dans la zone par rapport aux autres",4,4,6,5]
[]
[null,"Note globale",{"$f":"C6*$B$22+C7*$B$23+C8*$B$24+C9*$B$25+C10*$B$26+C11*$B$27+C12*$B$28+C13*$B$29+C15*$B$31+C14*$B$30","v":123},{"$f":"D6*$B$22+D7*$B$23+D8*$B$24+D9*$B$25+D10*$B$26+D11*$B$27+D12*$B$28+D13*$B$29+D15*$B$31+D14*$B$30","v":126},144,140,0,0,0,{"$f":"J6*$B$22+J7*$B$23+J8*$B$24+J9*$B$25+J10*$B$26+J11*$B$27+J12*$B$28+J13*$B$29+J15*$B$31+J14*$B$30","v":0}]
[null,"Moyenne pondérée",{"$f":"C17/B32","v":4.92},{"$f":"D17/B32","v":5.04},{"$f":"E17/B32","v":5.76},{"$f":"F17/B32","v":5.6},{"$f":"G17/B32","v":0},{"$f":"H17/B32","v":0},{"$f":"I17/B32","v":0},{"$f":"J17/B32","v":0}]
[]
["Base du choix","quatre premiers "]
["Pondération des critères"]
["La zone permet au pilote permet de cibler des petits producteurs, des goupes vulnérables susceptibles les femmes et les jeunes",5]
["Existence d'une demande des acteurs au niveau de la zone",0]
["Présence de bénéficiaires motivés prêts à investir",0]
["Présence d'acteurs organisés comme les coopératives, OP, motivés, dyamiques, inclusifs",2]
["Présence de partenaires qui promeuvent ou non l'application et qui peuvent permettre une synergie et accompagner le pilote et son passage à l'échelle au niveau de la zone (scaling up)",3]
["Existence de marché rémunérateur pour les produits issus de l'application",3]
["Existence de fournisseurs de l'application dotés de service après vente de logistique pour la maintenance couvrent la zone",3]
["Présence de services financiers en mesure d'accompagner le pilote",1]
["Initiatives en cours avec d'autres sources d'énergie (diesel, électricité, manuel, etc.)",4]
["Degré d'urgence",4]
[null,{"$f":"SUM(B22:B31)","v":25}]

{"sheet":"Tank à lait","index":6,"n_rows":32,"n_cols":10,"rows_kept":32,"cut":false,"hidden":false,"merged":[[20,0,20,1],[32,0,32,1]]}
[null,null,"Notation sur 10","les notes s'échelonnent de 0 à 10"]
[]
[]
[null,null,"Louga","Matam","Tambacounda","Saint-Louis","Kolda ","Sédhiou"]
[null,"Critères"]
["bénéficiaires","La zone permet au pilote permet de cibler des petits producteurs, des goupes vulnérables les femmes et les jeunes",7,7,6,5,7,5]
[null,"Existence d'une demande des acteurs au niveau de la zone",7,7,7,6,7,5]
[null,"Présence de bénéficiaires motivés prêts à investir",7,7,6,7,6,5]
["Partenaires","Présence d'acteurs organisés comme les coopératives, OP, motivés, dyamiques, inclusifs actifs dans la CDV",7,5,5,7,6,5]
[null,"Présence de partenaires qui promeuvent ou non l'application et qui peuvent permettre une synergie et accompagner le pilote et son passage à l'échelle au niveau de la zone (scaling up)",6,4,4,5,6,4]
["Conditions favorables","Existence de marché rémunérateur pour les produits issus de l'application",7,7,6,7,6,6]
[null,"Existence de fournisseurs de l'application dotés de service après vente de logistique pour la maintenance couvrent la zone",4,4,4,4,4,4]
[null,"Présence de services financiers en mesure d'accompagner le pilote",6,5,6,6,5,5]
[null,"Initiatives en cours avec d'autres sources d'énergie (diesel, électricité, manuel, etc.)",7,6,6,7,7,5]
["Urgence","Degré d'urgence et impact potentiel de l'application sur la CDV et avantage comparatif de la CDV dans la zone par rapport aux autres",7,8,8,5,8,7]
[]
[null,"Note globale",{"$f":"C6*$B$22+C7*$B$23+C8*$B$24+C9*$B$25+C10*$B$26+C11*$B$27+C12*$B$28+C13*$B$29+C15*$B$31+C14*$B$30","v":162},{"$f":"D6*$B$22+D7*$B$23+D8*$B$24+D9*$B$25+D10*$B$26+D11*$B$27+D12*$B$28+D13*$B$29+D15*$B$31+D14*$B$30","v":151},144,141,160,130,0,{"$f":"J6*$B$22+J7*$B$23+J8*$B$24+J9*$B$25+J10*$B$26+J11*$B$27+J12*$B$28+J13*$B$29+J15*$B$31+J14*$B$30","v":0}]
[null,"Moyenne pondérée",{"$f":"C17/B32","v":6.48},{"$f":"D17/B32","v":6.04},{"$f":"E17/B32","v":5.76},{"$f":"F17/B32","v":5.64},{"$f":"G17/B32","v":6.4},{"$f":"H17/B32","v":5.2},{"$f":"I17/B32","v":0},{"$f":"J17/B32","v":0}]
[]
["Base du choix","quatre premiers avec une moyenne supérieure à 6/10"]
["Pondération des critères"]
["La zone permet au pilote permet de cibler des petits producteurs, des goupes vulnérables susceptibles les femmes et les jeunes",5]
["Existence d'une demande des acteurs au niveau de la zone",0]
["Présence de bénéficiaires motivés prêts à investir",0]
["Présence d'acteurs organisés comme les coopératives, OP, motivés, dyamiques, inclusifs",2]
["Présence de partenaires qui promeuvent ou non l'application et qui peuvent permettre une synergie et accompagner le pilote et son passage à l'échelle au niveau de la zone (scaling up)",3]
["Existence de marché rémunérateur pour les produits issus de l'application",3]
["Existence de fournisseurs de l'application dotés de service après vente de logistique pour la maintenance couvrent la zone",3]
["Présence de services financiers en mesure d'accompagner le pilote",1]
["Initiatives en cours avec d'autres sources d'énergie (diesel, électricité, manuel, etc.)",4]
["Degré d'urgence",4]
[null,{"$f":"SUM(B22:B31)","v":25}]

{"sheet":"Moulin Solaire","index":7,"n_rows":32,"n_cols":10,"rows_kept":32,"cut":false,"hidden":false,"merged":[[20,0,20,1],[32,0,32,1]]}
[null,null,"Notation sur 10","les notes s'échelonnent de 0 à 10"]
[]
[]
[null,null,"Kaffrine","Kaolack","Louga","Diourbel","Kolda","Sédhiou","Ziguinchor","Saint-Louis"]
[null,"Critères"]
["bénéficiaires","La zone permet au pilote permet de cibler des petits producteurs, des goupes vulnérables  les femmes et les jeunes",8,8,6,8,7,7,6,7]
[null,"Existence d'une demande des acteurs au niveau de la zone",7,7,6,7,7,7,6,6]
[null,"Présence de bénéficiaires motivés prêts à investir",0,0,0,0,0,0,0,0]
["Partenaires","Présence d'acteurs organisés comme les coopératives, OP, motivés, dyamiques, inclusifs actifs dans la CDV",6,6,5,6,5,5,5,7]
[null,"Présence de partenaires qui promeuvent ou non l'application et qui peuvent permettre une synergie et accompagner le pilote et son passage à l'échelle au niveau de la zone (scaling up)",7,7,5,6,6,6,5,5]
["Conditions favorables","Existence de marché rémunérateur pour les produits issus de l'application",7,7,6,7,7,7,6,6]
[null,"Existence de fournisseurs de l'application dotés de service après vente de logistique pour la maintenance couvrent la zone",6,6,5,6,5,5,5,5]
[null,"Présence de services financiers en mesure d'accompagner le pilote",5,5,5,5,4,4,5,6]
[null,"Initiatives en cours avec d'autres sources d'énergie (diesel, électricité, manuel, etc.)",7,7,6,7,6,6,5,6]
["Urgence","Degré d'urgence et impact potentiel de l'application sur la CDV et avantage comparatif de la CDV dans la zone par rapport aux autres",7,6,6,7,8,8,6,5]
[]
[null,"Note globale",{"$f":"C6*$B$22+C7*$B$23+C8*$B$24+C9*$B$25+C10*$B$26+C11*$B$27+C12*$B$28+C13*$B$29+C15*$B$31+C14*$B$30","v":173},{"$f":"D6*$B$22+D7*$B$23+D8*$B$24+D9*$B$25+D10*$B$26+D11*$B$27+D12*$B$28+D13*$B$29+D15*$B$31+D14*$B$30","v":169},141,170,159,159,137,{"$f":"J6*$B$22+J7*$B$23+J8*$B$24+J9*$B$25+J10*$B$26+J11*$B$27+J12*$B$28+J13*$B$29+J15*$B$31+J14*$B$30","v":147}]
[null,"Moyenne pondérée",{"$f":"C17/B32","v":6.92},{"$f":"D17/B32","v":6.76},{"$f":"E17/B32","v":5.64},{"$f":"F17/B32","v":6.8},{"$f":"G17/B32","v":6.36},{"$f":"H17/B32","v":6.36},{"$f":"I17/B32","v":5.48},{"$f":"J17/B32","v":5.88}]
[]
["Base du choix","quatre premiers avec une moyenne supérieure à 6/10"]
["Pondération des critères"]
["La zone permet au pilote permet de cibler des petits producteurs, des goupes vulnérables susceptibles les femmes et les jeunes",5]
["Existence d'une demande des acteurs au niveau de la zone",0]
["Présence de bénéficiaires motivés prêts à investir",0]
["Présence d'acteurs organisés comme les coopératives, OP, motivés, dyamiques, inclusifs",2]
["Présence de partenaires qui promeuvent ou non l'application et qui peuvent permettre une synergie et accompagner le pilote et son passage à l'échelle au niveau de la zone (scaling up)",3]
["Existence de marché rémunérateur pour les produits issus de l'application",3]
["Existence de fournisseurs de l'application dotés de service après vente de logistique pour la maintenance couvrent la zone",3]
["Présence de services financiers en mesure d'accompagner le pilote",1]
["Initiatives en cours avec d'autres sources d'énergie (diesel, électricité, manuel, etc.)",4]
["Degré d'urgence",4]
[null,{"$f":"SUM(B22:B31)","v":25}]

{"sheet":"Presse à huile","index":8,"n_rows":32,"n_cols":10,"rows_kept":32,"cut":false,"hidden":false,"merged":[[20,0,20,1],[32,0,32,1]]}
[null,null,"Notation sur 10","les notes s'échelonnent de 0 à 10"]
[]
[]
[null,null,"Kaffrine","Kaolack","Louga","Diourbel","Fatick","Tambacounda","Kolda","Sédhiou"]
[null,"Critères"]
["bénéficiaires","La zone permet au pilote permet de cibler des petits producteurs, des goupes vulnérables  les femmes et les jeunes",7,8,6,8,7,7,7,7]
[null,"Existence d'une demande des acteurs au niveau de la zone",7,7,5,7,5,6,6,6]
[null,"Présence de bénéficiaires motivés prêts à investir"]
["Partenaires","Présence d'acteurs organisés comme les coopératives, OP, motivés, dyamiques, inclusifs actifs dans la CDV",6,6,5,6,6,5,5,5]
[null,"Présence de partenaires qui promeuvent ou non l'application et qui peuvent permettre une synergie et accompagner le pilote et son passage à l'échelle au niveau de la zone (scaling up)",6,6,5,5,5,6,5,5]
["Conditions favorables","Existence de marché rémunérateur pour les produits issus de l'application",7,7,6,7,6,6,6,6]
[null,"Existence de fournisseurs de l'application dotés de service après vente de logistique pour la maintenance couvrent la zone",5,5,4,5,5,5,5,5]
[null,"Présence de services financiers en mesure d'accompagner le pilote",5,5,5,5,5,5,5,5]
[null,"Initiatives en cours avec d'autres sources d'énergie (diesel, électricité, manuel, etc.)",7,7,5,7,6,6,7,7]
["Urgence","Degré d'urgence et impact potentiel de l'application sur la CDV et avantage comparatif de la CDV dans la zone par rapport aux autres",6,6,6,6,6,7,7,7]
[]
[null,"Note globale",{"$f":"C6*$B$22+C7*$B$23+C8*$B$24+C9*$B$25+C10*$B$26+C11*$B$27+C12*$B$28+C13*$B$29+C15*$B$31+C14*$B$30","v":158},{"$f":"D6*$B$22+D7*$B$23+D8*$B$24+D9*$B$25+D10*$B$26+D11*$B$27+D12*$B$28+D13*$B$29+D15*$B$31+D14*$B$30","v":163},134,160,148,153,154,{"$f":"J6*$B$22+J7*$B$23+J8*$B$24+J9*$B$25+J10*$B$26+J11*$B$27+J12*$B$28+J13*$B$29+J15*$B$31+J14*$B$30","v":154}]
[null,"Moyenne pondérée",{"$f":"C17/B32","v":6.32},{"$f":"D17/B32","v":6.52},{"$f":"E17/B32","v":5.36},{"$f":"F17/B32","v":6.4},{"$f":"G17/B32","v":5.92},{"$f":"H17/B32","v":6.12},{"$f":"I17/B32","v":6.16},{"$f":"J17/B32","v":6.16}]
[]
["Base du choix","quatre premiers avec une moyenne supérieure à 6/10"]
["Pondération des critères"]
["La zone permet au pilote permet de cibler des petits producteurs, des goupes vulnérables susceptibles les femmes et les jeunes",5]
["Existence d'une demande des acteurs au niveau de la zone",0]
["Présence de bénéficiaires motivés prêts à investir",0]
["Présence d'acteurs organisés comme les coopératives, OP, motivés, dyamiques, inclusifs",2]
["Présence de partenaires qui promeuvent ou non l'application et qui peuvent permettre une synergie et accompagner le pilote et son passage à l'échelle au niveau de la zone (scaling up)",3]
["Existence de marché rémunérateur pour les produits issus de l'application",3]
["Existence de fournisseurs de l'application dotés de service après vente de logistique pour la maintenance couvrent la zone",3]
["Présence de services financiers en mesure d'accompagner le pilote",1]
["Initiatives en cours avec d'autres sources d'énergie (diesel, électricité, manuel, etc.)",4]
["Degré d'urgence",4]
[null,{"$f":"SUM(B22:B31)","v":25}]

{"sheet":"Couveuse Solaire","index":9,"n_rows":32,"n_cols":10,"rows_kept":32,"cut":false,"hidden":false,"merged":[[20,0,20,1],[32,0,32,1]]}
[null,null,"Notation sur 10","les notes s'échelonnent de 0 à 10"]
[]
[]
[null,null,"Louga","Kolda","Kaolack","Thiès","Diourbel"]
[null,"Critères"]
["bénéficiaires","La zone permet au pilote permet de cibler des petits producteurs, des goupes vulnérables  les femmes et les jeunes",7,7,6,7,6]
[null,"Existence d'une demande des acteurs au niveau de la zone"]
[null,"Présence de bénéficiaires motivés prêts à investir"]
["Partenaires","Présence d'acteurs organisés comme les coopératives, OP, motivés, dyamiques, inclusifs actifs dans la CDV",6,5,7,7,6]
[null,"Présence de partenaires qui promeuvent ou non l'application et qui peuvent permettre une synergie et accompagner le pilote et son passage à l'échelle au niveau de la zone (scaling up)",6,6,7,7,6]
["Conditions favorables","Existence de marché rémunérateur pour les produits issus de l'application",6,6,6,7,6]
[null,"Existence de fournisseurs de l'application dotés de service après vente de logistique pour la maintenance couvrent la zone",5,4,5,5,5]
[null,"Présence de services financiers en mesure d'accompagner le pilote",6,5,6,7,6]
[null,"Initiatives en cours avec d'autres sources d'énergie (diesel, électricité, manuel, etc.)",6,5,6,7,6]
["Urgence","Degré d'urgence et impact potentiel de l'application sur la CDV et avantage comparatif de la CDV dans la zone par rapport aux autres",6,7,6,5,6]
[]
[null,"Note globale",{"$f":"C6*$B$22+C7*$B$23+C8*$B$24+C9*$B$25+C10*$B$26+C11*$B$27+C12*$B$28+C13*$B$29+C15*$B$31+C14*$B$30","v":152},{"$f":"D6*$B$22+D7*$B$23+D8*$B$24+D9*$B$25+D10*$B$26+D11*$B$27+D12*$B$28+D13*$B$29+D15*$B$31+D14*$B$30","v":146},152,161,147,0,0,{"$f":"J6*$B$22+J7*$B$23+J8*$B$24+J9*$B$25+J10*$B$26+J11*$B$27+J12*$B$28+J13*$B$29+J15*$B$31+J14*$B$30","v":0}]
[null,"Moyenne pondérée",{"$f":"C17/B32","v":6.08},{"$f":"D17/B32","v":5.84},{"$f":"E17/B32","v":6.08},{"$f":"F17/B32","v":6.44},{"$f":"G17/B32","v":5.88},{"$f":"H17/B32","v":0},{"$f":"I17/B32","v":0},{"$f":"J17/B32","v":0}]
[]
["Base du choix","quatre premiers avec une moyenne supérieure à 6/10"]
["Pondération des critères"]
["La zone permet au pilote permet de cibler des petits producteurs, des goupes vulnérables susceptibles les femmes et les jeunes",5]
["Existence d'une demande des acteurs au niveau de la zone",0]
["Présence de bénéficiaires motivés prêts à investir",0]
["Présence d'acteurs organisés comme les coopératives, OP, motivés, dyamiques, inclusifs",2]
["Présence de partenaires qui promeuvent ou non l'application et qui peuvent permettre une synergie et accompagner le pilote et son passage à l'échelle au niveau de la zone (scaling up)",3]
["Existence de marché rémunérateur pour les produits issus de l'application",3]
["Existence de fournisseurs de l'application dotés de service après vente de logistique pour la maintenance couvrent la zone",3]
["Présence de services financiers en mesure d'accompagner le pilote",1]
["Initiatives en cours avec d'autres sources d'énergie (diesel, électricité, manuel, etc.)",4]
["Degré d'urgence",4]
[null,{"$f":"SUM(B22:B31)","v":25}]